Cogmind - Beta 16 --- EXPLORER MODE // 2025.12.19 @ 10:51:37 Player: K.K.Y. Result: Destroyed by P-60 Hacker with Shock Rifle Performance ------------- Evolutions (4) 2000 Regions Visited (6) 1200 Robots Destroyed (120) 600 Value Destroyed (3892) 3892 Prototype IDs (35) 700 Alien Tech Used (0) 0 Bonus (2181) 2181 TOTAL SCORE: 10573 Bonus ------- Follower Combat Kills 181 Delivered SUBCON Basin 2000 Cogmind --------- Core Integrity 0/850 Matter 233/300 Energy 45/100 System Corruption 23% Temperature Cool (0) Movement Core (1500) Ox29 Location -6/Factory Parts ------- > --- POWER (2) -------- (None) > --- PROPULSION (5) --- (None) > --- UTILITY (7) ------ Huge Storage Unit > --- WEAPON (2) ------- Proton Cannon > --- INVENTORY (25) --- Arachnoskeleton Large Storage Unit Improved Signal Interpreter Terrain Scan Processor Improved Heavy Armor Plating Improved Hardlight Generator Improved Hacking Suite System Guard Improved Recalibrator Peak State ------------ > --- POWER ------------ Reinforced Deuterium Engine Light Antimatter Reactor > --- PROPULSION ------- Advanced Treads Medium Treads Medium Treads Medium Treads Improved Medium Treads > --- UTILITY ---------- Humpback Improved Heavy Armor Plating Makeshift Hacking Suite Improved Hacking Suite System Shield > --- WEAPON ----------- Hypervelocity Gauss Rifle Power Sword > --- INVENTORY -------- Light Angular Momentum Engine Arachnoskeleton Improved Cryofiber Web Advanced Heat Sink Large Storage Unit Huge Storage Unit Advanced Weight Redist. System Structural Scanner Machine Analyzer Triangulator Improved Sensor Array Improved Signal Interpreter IFF Parser Advanced Terrain Scanner Improved Particle Charger Improved Heavy Armor Plating Medium Reactive Plating EM Disruption Field Improved Hardlight Generator Tech Extrapolator System Guard High-powered Tractor Beam Improved Recalibrator High-powered Shock Rifle Heavy Laser Improved Heavy Laser Improved EM Pulse Cannon Heavy Ion Cannon Heavy Plasma Cannon Assault Cannon Impact Mace [Rating: 80] Favorites ----------- Power Reinforced Deuterium Engine Engine Reinforced Deuterium Engine Power Core Nuclear Core Reactor Light Antimatter Reactor Propulsion Medium Treads Treads Medium Treads Leg Carbon-fiber Leg Wheel Subdweller Monowheel Flight Unit Flight Unit Utility Makeshift Hacking Suite Device Structural Scanner Storage Huge Storage Unit Hackware Makeshift Hacking Suite Protection Improved Heavy Armor Plating Weapon Barrage Gun Energy Gun Medium Laser Energy Cannon Proton Cannon Ballistic Gun Barrage Gun Ballistic Cannon Gauss Cannon Launcher Long-range Missile Launcher Slashing Weapon Ripper Build | -11 -10 -10 -10 -8 -8 -6 ------- Run | Yrd Mat Min Sub Rec Scr Fac Slots Evolved 9 | . 1 . . . . 8 Power 1 | . . . . . . 1 Propulsion 3 | . . . . . . 3 Utility 5 | . 1 . . . . 4 Weapon . | . . . . . . . Parts Attached 78 | 7 3 5 20 6 3 34 Power 11 | 1 . 1 3 . 1 5 Engine 9 | 1 . 1 3 . 1 3 Core 1 | . . . . . . 1 Reactor 1 | . . . . . . 1 Propulsion 29 | 2 . 2 10 4 1 10 Treads 19 | 2 . 2 1 4 1 9 Leg 1 | . . . . . . 1 Wheel 8 | . . . 8 . . . Hover . | . . . . . . . Flight 1 | . . . 1 . . . Utility 19 | 2 1 1 4 1 . 10 Device 6 | 2 . . . . . 4 Storage 4 | . . . 2 . . 2 Processor . | . . . . . . . Hackware 4 | . . . 1 1 . 2 Protection 5 | . 1 1 1 . . 2 Artifact . | . . . . . . . Weapon 19 | 2 2 1 3 1 1 9 Energy Gun 7 | 2 2 1 . . . 2 Energy Cannon 2 | . . . . . . 2 Ballistic Gun 6 | . . . 2 1 . 3 Ballistic Cannon 1 | . . . . . . 1 Launcher 1 | . . . . . . 1 Special Weapon . | . . . . . . . Impact Weapon . | . . . . . . . Slashing Weapon 2 | . . . 1 . 1 . Piercing Weapon . | . . . . . . . Special Melee Weapon . | . . . . . . . Unidentified Prototypes 3 | . . . . . . 3 Parts Lost 42 | . . . 9 . . 33 Power 5 | . . . 2 . . 3 Propulsion 10 | . . . 3 . . 7 Utility 16 | . . . 2 . . 14 Weapon 11 | . . . 2 . . 9 Highest Loss Streak 19 | . . . 4 . . 19 To Critical Strikes . | . . . . . . . Average Backups 15 | 1 3 5 4 8 21 28 Power . | . . . . . . . Propulsion . | . . . . 1 1 1 Utility 10 | 1 3 4 3 5 14 19 Weapon 3 | . . . 1 1 5 7 Tool/Special . | . . . . . . . Unused Backups 51 | . 1 . 1 5 4 40 Power 3 | . . . . 1 . 2 Propulsion 1 | . . . . . . 1 Utility 30 | . 1 . 1 2 2 24 Weapon 16 | . . . . 2 1 13 Tool/Special 1 | . . . . . 1 . Average Slot Usage (%) 90 | . 87 100 86 98 99 81 Engine 9 | . 12 12 7 12 11 8 Treads 22 | . 25 25 7 23 25 27 Wheel 1 | . . . 9 . . . Device 8 | . 25 25 17 5 . 3 Storage 7 | . . . 6 12 12 5 Hackware 12 | . . . . 19 25 15 Protection 4 | . . 12 11 . . 4 Energy Gun 3 | . 25 25 4 . . . Ballistic Gun 8 | . . . 9 12 12 5 Slashing Weapon 8 | . . . 9 12 12 5 Peak Build Rating 80 | 7 8 10 38 39 35 80 Average Rating 38 | 6 7 8 20 29 33 68 On Entrance 18 | . 7 8 10 38 31 35 Avg Prop Armor Cover (%) . | . . . . . . . Naked Turns . | . . . . . . . Heaviest Build 251 | 11 14 17 92 92 95 251 Greatest Support 148 | 40 40 40 40 42 50 148 Greatest Overweight (x) 29 | . . . 9 4 2 29 Average Overweight (x) 1 | . . . 1 1 1 1 Largest Inventory Capacity 35 | 5 5 5 25 25 25 35 Average Capacity 22 | 5 5 5 12 23 25 32 Most Carried 35 | 5 5 5 25 25 25 35 Average Carried 19 | 1 3 4 10 16 24 31 Final Capacity 25 | 5 5 5 25 25 25 25 Final Carried 25 | 2 5 5 25 25 25 12 Class Distribution -------------------- 96% | Hacker-Mutant Dominant Class ---------------- Hacker-Mutant | -10/Materials Hacker-Mutant | -10/Mines Hacker-Mutant | -10/Subcaves Hacker-Mutant | -8/Recycling Hacker-Mutant | -8/Scraptown Hacker-Mutant | -6/Factory Resources | -11 -10 -10 -10 -8 -8 -6 ----------- Run | Yrd Mat Min Sub Rec Scr Fac Matter Collected 1988 | 270 20 60 281 164 20 1173 Remotely . | . . . . . . . Salvage Created 5077 | 200 315 167 590 649 . 3156 Parts 275 | 13 21 19 37 25 . 160 Haulers Intercepted 5 | . 2 . . . . 3 Recyclers Shooed 3 | . 1 . . . . 2 Parts Field Recycled . | . . . . . . . Retrieved Matter . | . . . . . . . Parts Self-Destructed . | . . . . . . . Prevented . | . . . . . . . Parts Restored . | . . . . . . . Kills | -11 -10 -10 -10 -8 -8 -6 ------- Run | Yrd Mat Min Sub Rec Scr Fac Combat Hostiles Destroyed 77 | . 6 5 16 5 . 45 Melee 30 | . . . 4 . . 26 Guns 44 | . 6 5 12 5 . 16 AOE 3 | . . . . . . 3 Classes Destroyed 17 | 2 4 1 2 4 . 4 Worker 8 | 1 1 1 . . . 5 Builder 5 | . . . . 2 . 3 Tunneler 12 | 8 . 3 . . . 1 Hauler 5 | . 2 . . . . 3 Recycler 6 | . . . . 4 . 2 Mechanic 2 | . . . . . . 2 Turret 2 | . . . 2 . . . Watcher 5 | . 2 . . . . 3 Swarmer 10 | . 4 2 4 . . . Grunt 23 | . 2 2 . . . 19 Duelist 1 | . . . . . . 1 Sentry 11 | . . . . 4 . 7 Demolisher 3 | . . 1 . . . 2 Hunter 1 | . . . . . . 1 Programmer 14 | . . . . 1 . 13 Subdweller 12 | . . . 12 . . . Assembled 2 | . . . . . . 2 Best Kill Streak 6 | 2 3 2 6 3 . 5 Combat Bots Only 4 | . 2 2 4 3 . 4 Max Kills in Single Turn 2 | 1 2 2 1 1 . 2 Gunslinging 1 | . 1 . . . . . Exploded 2 | . . . . . . 2 Melee 1 | . . . 1 . . 1 Uniques/NPCs Destroyed . | . . . . . . . Combat | -11 -10 -10 -10 -8 -8 -6 -------- Run | Yrd Mat Min Sub Rec Scr Fac Hostile Shots Fired 849 | . 24 14 112 20 . 679 Missed 261 | . 5 1 37 3 . 215 Hits 588 | . 19 13 75 17 . 464 Melee 5 | . . . . . . 5 Projectile 583 | . 19 13 75 17 . 459 AOE 7 | . . 2 . . . 5 Critical Strikes 19 | . . . . 1 . 18 Actively Blocked 1 | . . . 1 . . . Part Disruptions 1 | . . . . . . 1 Damage Taken 5849 | . 169 136 764 199 . 4581 Core 1069 | . 38 . 138 38 . 855 Absorbed by Shields . | . . . . . . . Redirected to Shielding 22 | . . . 22 . . . Ignored by Resistances 3342 | . 111 84 454 121 . 2572 Regen/Repaired (Parts) 253 | . . . . . . 253 Core Remaining (%) 57 | 100 . . . . 14 . Volleys Fired 243 | 16 26 18 60 16 . 107 Largest 2 | 2 2 2 2 1 . 2 Hottest 109 | 100 100 106 106 28 . 109 Shots Fired 326 | 32 52 36 80 16 . 110 Gun 316 | 32 52 36 80 16 . 100 Cannon 4 | . . . . . . 4 Launcher 6 | . . . . . . 6 Special . | . . . . . . . Kinetic 143 | . . . 32 16 . 95 Thermal 176 | 32 52 36 48 . . 8 Explosive 6 | . . . . . . 6 Electromagnetic 1 | . . . . . . 1 Robot Hit Streak 48 | 25 26 18 48 14 . 38 Robot Miss Streak 1 | . 1 1 1 1 . 1 Penetration Max 1 | . . . . . . 1 Secondary Targets 1 | . 1 . . . . . Max Gunslinging Chain 1 | . 1 . . . . . Shots Hit Robots 381 | 25 40 27 75 24 . 190 Core Hits 172 | 9 17 14 30 9 . 93 Critical Kills 15 | . . . . . . 15 Critical Parts Destroyed 8 | . . . . . . 8 Critical Strikes 51 | 3 7 2 3 . . 36 Burn 15 | 3 7 2 3 . . . Destroy 23 | . . . . . . 23 Blast 1 | . . . . . . 1 Sever 12 | . . . . . . 12 Melee Attacks 129 | . . . 24 9 . 96 Impact . | . . . . . . . Slashing 129 | . . . 24 9 . 96 Piercing . | . . . . . . . Sneak Attacks 20 | . . . . 8 . 12 Combat Hostiles . | . . . . . . . Follow-up Attacks . | . . . . . . . Damage Inflicted 9674 | 312 525 358 1343 917 . 6219 Guns 3581 | 312 525 358 903 304 . 1179 Cannons 86 | . . . . . . 86 Explosions 654 | . . . . . . 654 Melee 5352 | . . . 440 613 . 4299 Ramming 1 | . . . . . . 1 Kinetic 1770 | . . . 352 304 . 1114 Thermal 1891 | 312 525 358 551 . . 145 Explosive 654 | . . . . . . 654 Electromagnetic 6 | . . . . . . 6 Impact . | . . . . . . . Slashing 5352 | . . . 440 613 . 4299 Piercing . | . . . . . . . Highest Corruption 23 | . . . . . . 23 Average Corruption 7 | . . . . . . 7 Corruption Purged . | . . . . . . . Corruption Blocked . | . . . . . . . Effects 184 | . . . . . . 184 Message Errors 37 | . . . . . . 37 Matter Fused 49 | . . . . . . 49 Heat Flow Errors 30 | . . . . . . 30 Energy Discharges 18 | . . . . . . 18 Parts Fused 2 | . . . . . . 2 Data Loss (minor) 24 | . . . . . . 24 Data Loss (major) 10 | . . . . . . 10 Misfires 5 | . . . . . . 5 Alerts 4 | . . . . . . 4 Weapon Failures 5 | . . . . . . 5 Overload Shots . | . . . . . . . Overflow Damage 587 | . . . . 96 . 491 Projectiles . | . . . . . . . Explosions 78 | . . . . . . 78 Melee 509 | . . . . 96 . 413 Knockbacks 1 | . . . . . . 1 Impact . | . . . . . . . Kinetic 1 | . . . . . . 1 Secondary . | . . . . . . . Self-Inflicted Damage . | . . . . . . . Shots . | . . . . . . . Rammed 1 | . . . . . . 1 Targets Rammed 1 | . . . . . . 1 Kicked . | . . . . . . . Crushed . | . . . . . . . Highest Temperature 405 | 156 307 405 13 3 . 299 Average Temperature 83 | 51 82 100 6 3 . 89 Received Heat Transfer 2334 | . 72 69 264 54 . 1875 Effects 7 | . . 2 . . . 5 Shutdowns 1 | . . 1 . . . . Energy Bleed 3 | . . 1 . . . 2 Interference 3 | . . . . . . 3 Siege Activations . | . . . . . . . Martial Activations . | . . . . . . . Shielding Activations . | . . . . . . . Robots Disrupted . | . . . . . . . Combat Hostiles . | . . . . . . . Robots Corrupted . | . . . . . . . Combat Hostiles . | . . . . . . . Parts Fried . | . . . . . . . Impact Corruptions . | . . . . . . . Robots Melted . | . . . . . . . Combat Hostiles . | . . . . . . . Parts Melted 11 | 5 . 1 4 . . 1 Heat Transferred 6401 | 1147 2072 1184 1739 . . 259 Parts Sabotaged . | . . . . . . . Parts Stolen . | . . . . . . . Parts Stripped . | . . . . . . . Power Chain Reactions . | . . . . . . . Alert | -11 -10 -10 -10 -8 -8 -6 ------- Run | Yrd Mat Min Sub Rec Scr Fac Maximum Alert Level . | . . . . . . . Low Security (%) 100 | 100 100 100 . 100 . 100 Level 1 . | . . . . . . . Level 2 . | . . . . . . . Level 3 . | . . . . . . . Level 4 . | . . . . . . . Level 5 . | . . . . . . . High Security . | . . . . . . . Max Security . | . . . . . . . Peak Influence 77 | 10 77 35 . 64 . 73 Initial . | . . . . . . . Average 4 | 1 6 2 . 1 . 7 Influence Increases 2277 | 45 193 150 180 247 . 1462 Destroy 0b10 Robot/C 1400 | . 120 100 120 160 . 900 Destroy 0b10 Robot/NC 220 | 45 25 20 . 35 . 95 Destroy Leader 360 | . 38 30 . . . 292 Allied During Kill 4 | . . . . 3 . 1 Successful Hack 82 | . 10 . . 14 . 58 Disable Machine 24 | . . . . . . 24 Destroy Structure 67 | . . . . 20 . 47 Lose Combat Pursuer 120 | . . . 60 15 . 45 Influence Decreases 2277 | 45 193 150 180 247 . 1462 Time Decay 2178 | 45 193 150 160 247 . 1383 Lost Part 99 | . . . 20 . . 79 Squads Dispatched 20 | . . . . . . 20 Investigation 3 | . . . . . . 3 Extermination 13 | . . . . . . 13 Reinforcement 4 | . . . . . . 4 Assault . | . . . . . . . Garrison . | . . . . . . . Intercept . | . . . . . . . Searches Triggered . | . . . . . . . Construction Impeded 1 | . . . . . . 1 Haulers Reinforced . | . . . . . . . Active Scanning Responses . | . . . . . . . Cargo Convoy Interrupts . | . . . . . . . Stealth | -11 -10 -10 -10 -8 -8 -6 --------- Run | Yrd Mat Min Sub Rec Scr Fac Distress Signals 2 | . 1 . . . . 1 Communications Jammed . | . . . . . . . Distress Signals . | . . . . . . . Times Spotted 123 | . 14 6 18 8 . 77 Peak Tracking Total 12 | . 4 1 6 4 . 12 Tactical Retreats 6 | . . . 2 1 . 3 Traps | -11 -10 -10 -10 -8 -8 -6 ------- Run | Yrd Mat Min Sub Rec Scr Fac Traps Triggered 8 | . 3 . 2 . . 3 Indirectly . | . . . . . . . Trap Hack Attempts . | . . . . . . . Triggered . | . . . . . . . Disarmed . | . . . . . . . Reprogrammed . | . . . . . . . Reused . | . . . . . . . Traps Extracted . | . . . . . . . Installed . | . . . . . . . Triggered . | . . . . . . . Machines | -11 -10 -10 -10 -8 -8 -6 ---------- Run | Yrd Mat Min Sub Rec Scr Fac Machines Disabled 7 | . . . 1 . . 6 Max in Single Turn 6 | . . . 1 . . 6 Machines Repaired . | . . . . . . . Machines Dismantled . | . . . . . . . Machines Sabotaged . | . . . . . . . Overloaded Fab Kills . | . . . . . . . Hacking | -11 -10 -10 -10 -8 -8 -6 --------- Run | Yrd Mat Min Sub Rec Scr Fac Machines Accessed 31 | . 2 . 4 14 . 11 Terminals 13 | . 2 . . 6 . 5 Fabricators 1 | . . . . . . 1 Repair Stations 2 | . . . . . . 2 Recycling Units 10 | . . . . 8 . 2 Scanalyzers 1 | . . . . . . 1 Garrison Access . | . . . . . . . Total Hacks 103 | . 2 . 8 54 . 39 Successful 81 | . 2 . 8 43 . 28 Failed 22 | . . . . 11 . 11 Catastrophic . | . . . . . . . Database Lockouts . | . . . . . . . Manual 51 | . 2 . . 36 . 13 Terminals 51 | . 2 . . 36 . 13 Fabricators 4 | . . . . . . 4 Repair Stations 8 | . . . . . . 8 Recycling Units 26 | . . . . 18 . 8 Scanalyzers 6 | . . . . . . 6 Garrison Access . | . . . . . . . Terminal Hacks 33 | . . . 8 21 . 4 Record 5 | . . . 5 . . . Part Schematic 7 | . . . . 4 . 3 Robot Schematic 1 | . . . . . . 1 Prototype ID Bank 17 | . . . . 17 . . Open Door 1 | . . . 1 . . . Proto ID Catalog 1 | . . . 1 . . . Release Object 1 | . . . 1 . . . Fabricator Hacks 2 | . . . . . . 2 Load Schematic 1 | . . . . . . 1 Build 1 | . . . . . . 1 Repair Station Hacks 4 | . . . . . . 4 Scan Component 2 | . . . . . . 2 Repair 2 | . . . . . . 2 Recycling Unit Hacks 11 | . . . . 9 . 2 Retrieve Matter 2 | . . . . 1 . 1 Retrieve Components 9 | . . . . 8 . 1 Scanalyzer 6 | . . . . . . 6 Insert Component 3 | . . . . . . 3 Analyze 3 | . . . . . . 3 Garrison Access Hacks . | . . . . . . . Unauthorized Hacks 25 | . 2 . . 13 . 10 Terminals 13 | . 2 . . 5 . 6 Assimilate 2 | . . . . . . 2 Botnet 11 | . 2 . . 5 . 4 Fabricators 1 | . . . . . . 1 Fabnet 1 | . . . . . . 1 Repair Stations . | . . . . . . . Recycling Units 11 | . . . . 8 . 3 Reject 9 | . . . . 8 . 1 Recyclers 1 | . . . . . . 1 Mask 1 | . . . . . . 1 Scanalyzers . | . . . . . . . Garrison Access . | . . . . . . . Data Cores Recovered . | . . . . . . . Used . | . . . . . . . Hacking Detections 16 | . . . . 8 . 8 Full Trace Events 3 | . . . . . . 3 Feedback Events 1 | . . . . . . 1 Corruption 1 | . . . . . . 1 Feedback Blocked . | . . . . . . . Robot Schematics Acquired 1 | . . . . . . 1 Robots Built 2 | . . . . . . 2 Authchips . | . . . . . . . Time 76 | . . . . . . 76 Total Robot Build Rating 10 | . . . . . . 10 Part Schematics Acquired 10 | . . . . 4 . 6 Parts Built . | . . . . . . . Authchips . | . . . . . . . Time . | . . . . . . . Total Part Build Rating . | . . . . . . . Part Studies Acquired . | . . . . . . . Parts Repaired 2 | . . . . . . 2 Time 41 | . . . . . . 41 Parts Recycled . | . . . . . . . Recycled Matter . | . . . . . . . Retrieved Matter 195 | . . . . . . 195 Retrieved Components 54 | . . . . 44 . 10 Parts Scanalyzed 3 | . . . . . . 3 Part Schematics Acquired 3 | . . . . . . 3 Parts Damaged 1 | . . . . . . 1 Bothacking | -11 -10 -10 -10 -8 -8 -6 ------------ Run | Yrd Mat Min Sub Rec Scr Fac Used RIF Installer . | . . . . . . . Robots Hacked . | . . . . . . . Non-combat . | . . . . . . . Combat . | . . . . . . . Robot Hacks Applied . | . . . . . . . Relay Couplers Released . | . . . . . . . Fabnet Peak Effective % . | . . . . . . . Robots Rewired 3 | . . . . 3 . . Allies Hacked . | . . . . . . . Hacks Repelled . | . . . . . . . Allies | -11 -10 -10 -10 -8 -8 -6 -------- Run | Yrd Mat Min Sub Rec Scr Fac Total Allies 5 | . . . . 3 . 2 Largest Group 3 | . . . . 3 2 2 Highest-Rated Group 65 | . . . . 65 31 31 Highest-Rated Ally 34 | . . . . 34 16 16 Total Orders . | . . . . . . . Ally Attacks 27 | . . . . 8 . 19 Total Damage 699 | . . . . 311 . 388 Kills 6 | . . . . 4 . 2 Allies Corrupted . | . . . . . . . Allies Melted . | . . . . . . . Intel | -11 -10 -10 -10 -8 -8 -6 ------- Run | Yrd Mat Min Sub Rec Scr Fac Active Infowar (turns) 9138 | 331 972 1002 3782 2081 . 970 Sensors 4151 | 330 972 1002 1534 . . 313 Terrain 657 | . . . . . . 657 Structural 8168 | 331 972 1002 3782 2081 . . Robot Analysis Total . | . . . . . . . Derelict Logs Recovered 4 | . . . 2 . 2 . Drone Launches . | . . . . . . . Drone Recoveries . | . . . . . . . Exploration | -11 -10 -10 -10 -8 -8 -6 ------------- Run | Yrd Mat Min Sub Rec Scr Fac Turns Passed 18983 | 346 972 1002 3782 4530 2036 6315 Spaces Moved 7628 | 172 526 572 2050 1452 727 2129 Core 34 | 14 . . 8 . . 12 Treads 6089 | 158 526 572 537 1452 727 2117 Legs . | . . . . . . . Wheels 1442 | . . . 1442 . . . Hover . | . . . . . . . Flight 63 | . . . 63 . . . Fastest Speed 50 | 50 160 160 95 152 232 156 Average Speed 219 | 151 160 160 162 297 275 240 Slowest Speed 1500 | 160 160 160 560 560 317 1500 Overloaded Moves . | . . . . . . . Propulsion Burnouts . | . . . . . . . Robots Hopped . | . . . . . . . Potential Cave-ins . | . . . . . . . Cave-ins Triggered 1 | . . . . . . 1 Exploration Rate (%) 68 | 8 87 99 93 99 54 39 Regions Visited 6 Branch Regions 4 Pre-discovered Areas 3 | . . . 2 . 1 . Known Exits Taken 6 | 1 1 1 1 1 1 . Unknown Exits Taken . | . . . . . . . Scrap Searched 9 | . . 1 5 . 3 . Spaces Dug 2 | . . . 2 . . . Terrain Destroyed 61 | . . . 2 . . 59 Melee 2 | . . . 2 . . . Projectile . | . . . . . . . AOE 59 | . . . . . . 59 Terrain Rammed . | . . . . . . . Walls Destroyed . | . . . . . . . Machines Disabled . | . . . . . . . Actions | -11 -10 -10 -10 -8 -8 -6 --------- Run | Yrd Mat Min Sub Rec Scr Fac Total 9373 | 226 606 625 2405 1644 770 3097 Wait 1059 | 23 45 25 212 112 22 620 Move 7622 | 171 525 571 2049 1451 726 2129 Hop . | . . . . . . . Pick Up 119 | 9 4 1 22 22 9 52 Fast Attach 29 | . 1 . 1 1 . 26 Attach 32 | 7 . . 13 1 1 10 Detach 9 | . . . 5 1 1 2 Swap 33 | . 2 5 6 8 2 10 Drop 87 | . 3 5 13 13 9 44 Fire 243 | 16 26 18 60 16 . 107 Melee 129 | . . . 24 9 . 96 Ram 1 | . . . . . . 1 Kick . | . . . . . . . Crush . | . . . . . . . Escape Stasis . | . . . . . . . Rewire 10 | . . . . 10 . . Trap . | . . . . . . . Miscellaneous . | . . . . . . . Route ------- -11/Scrapyard -10/Materials (discovered 4 exits: *Mat x2 / *Min x2) -10/Mines (discovered 4 exits: *Mat x2 / *Exi / *Sub) -10/Subcaves (discovered 4 exits: *Mat x2 / *Rec / *Scr) -8/Recycling (discovered 2 exits: *Fac / *Scr) -8/Scraptown -6/Factory (discovered 3 exits: *Fac / *Low x2) History --------- Turn | Location | Event 6 | -11/Scrapyard | Identified exit to Materials 6 | -11/Scrapyard | Discovered exit to Materials (range 16) 347 | -11/Scrapyard | Entered Materials 347 | -10/Materials | Evolved 1 slot: Utility x1 347 | -10/Materials | Identified exit to Mines 347 | -10/Materials | Discovered exit to Mines (range 8) 348 | -10/Materials | Build established: Hacker-Mutant 535 | -10/Materials | Discovered exit to Mines (range 9) 613 | -10/Materials | Identified exit to Materials 613 | -10/Materials | Discovered exit to Materials (range 9) 899 | -10/Materials | Discovered exit to Materials (range 14) 1319 | -10/Materials | Entered Mines 1320 | -10/Mines | Assembled infested the area 1325 | -10/Mines | Assisted by a Guerilla fighting off Assembled 1641 | -10/Mines | Discovered exit to Materials (range 9) 1646 | -10/Mines | Received a Rocket Launcher from a helpful Derelict 1810 | -10/Mines | Discovered exit to Materials (range 6) 1839 | -10/Mines | Joined a pair of Derelicts in attacking an 0b10 outpost 2199 | -10/Mines | Identified exit to Exiles 2199 | -10/Mines | Discovered exit to Exiles (range 8) 2225 | -10/Mines | Deemed a non-threat by the Exiles lab entrance 2271 | -10/Mines | Found a Scrap Suit stashed away for nefarious purposes 2292 | -10/Mines | Identified exit to Subcaves 2292 | -10/Mines | Discovered exit to Subcaves (range 11) 2321 | -10/Mines | Entered Subcaves 2322 | -10/Subcaves | Approached by a straggling Scientist 2595 | -10/Subcaves | Learned location of Zion (-7) 2595 | -10/Subcaves | Met a Zionite searching for "candidates" 2933 | -10/Subcaves | Shifting Twisted Machinery released Shrapnel Trap 2956 | -10/Subcaves | Shifting Twisted Machinery released Sub. Beam Cannon 2970 | -10/Subcaves | Identified exit to Materials 2970 | -10/Subcaves | Discovered exit to Materials (range 9) 3023 | -10/Subcaves | Lost 4 parts (1n1u2w) 3110 | -10/Subcaves | Discovered exit to Materials (range 5) 3140 | -10/Subcaves | Identified exit to Recycling 3140 | -10/Subcaves | Discovered exit to Recycling (range 16) 3330 | -10/Subcaves | Learned location of 1 exit from Materials 3896 | -10/Subcaves | Core integrity fell below 50% 4164 | -10/Subcaves | A swath of the cavern ceiling suddenly collapsed 4336 | -10/Subcaves | Visited Clippyterm 4339 | -10/Subcaves | Learned Factory garrison access intel 4777 | -10/Subcaves | Found SUBCON Basin 5349 | -10/Subcaves | Visited 4L-MR0's lab 5396 | -10/Subcaves | Found Arachnoskeleton 6103 | -10/Subcaves | Entered Recycling 6936 | -8/Recycling | Identified exit to Factory 6936 | -8/Recycling | Discovered exit to Factory (range 10) 7170 | -8/Recycling | Scanned before Scraplab entrance 7210 | -8/Recycling | Identified exit to Scraptown 7210 | -8/Recycling | Discovered exit to Scraptown (range 11) 7221 | -8/Recycling | Entered Scraplab 7371 | -8/Recycling | Core integrity fell below 20% 10633 | -8/Recycling | Entered Scraptown 10633 | -8/Scraptown | Accompanied by 2 allies 10725 | -8/Scraptown | Heard Great Nut preacher, LISTEN AND RECITE! 10923 | -8/Scraptown | Scanned Subdweller tech in exchange for log data 10933 | -8/Scraptown | Learned location of Quarantine (-2) 10976 | -8/Scraptown | Discovered exit to Factory (range 13) 11982 | -8/Scraptown | Visited Fellowship of the Rings 12019 | -8/Scraptown | Visited Awakened 12065 | -8/Scraptown | Visited The Evicted 12112 | -8/Scraptown | Visited Spacefarers 12146 | -8/Scraptown | Visited SPCMW 12669 | -8/Scraptown | Entered Factory 12669 | -6/Factory | Accompanied by 2 allies 12669 | -6/Factory | Evolved 8 slots: Power x1, Propulsion x3, Utility x4 12670 | -6/Factory | Loaded intel: 3 garrison access locations 13044 | -6/Factory | Identified exit to Factory 13044 | -6/Factory | Discovered exit to Factory (range 11) 13176 | -6/Factory | P-60 Hacker assimilated allied Trooper 3a 14696 | -6/Factory | Identified exit to Lower Caves 14696 | -6/Factory | Discovered exit to Lower Caves (range 7) 15374 | -6/Factory | Repaired Assault Cannon 15397 | -6/Factory | Repaired Med. Treads 15746 | -6/Factory | System corruption reached 10% 17327 | -6/Factory | Fabricated E-15 Imp? 17397 | -6/Factory | Discovered exit to Lower Caves (range 6) 17721 | -6/Factory | Lost 3 parts (1n1u1w) 18302 | -6/Factory | Build established: Wizard-Mutant 18574 | -6/Factory | Crushed by falling debris 18632 | -6/Factory | Lost 8 parts (1p3n3u1w) 18653 | -6/Factory | Core integrity fell below 50% 18815 | -6/Factory | Lost 19 parts (2p2n9u6w) 18937 | -6/Factory | Core integrity fell below 20% 18984 | -6/Factory | Destroyed by P-60 Hacker with Shock Rifle Last Messages --------------- 18930_ U-05 Engineer builds a Wall. 18930_ U-05 Engineer lays Concrete. 18935_ U-05 Engineer builds a Wall. 18946_ EIRAVFBM|X4PLRHVCRHO> V7RRRPNRKE:OW 18947_ U-05 Engineer builds a Wall. 18948_ Chain reaction triggered in Lgt. Ion Engine. 18948_ U-05 Engineer destroyed. 18951_ U-05 Engineer lays Concrete. 18962_ U-05 Engineer builds a Wall. 18962_ U-05 Engineer lays Concrete. 18964_ System corrupted: Heat flow error (+231). 18964_ U-05 Engineer lays Concrete. 18968_ R-10 Processor collects Terrain Scanner. 18968_ U-05 Engineer builds a Wall. 18973_ R-10 Processor collects Lrn. Missile Launcher. 18973_ Acquired Proton Cannon. 18977_ R-10 Processor collects Machine Analyzer. 18984_ System corrupted: Energy discharge (-20). Map ----- +----------------------------------------------------+ | ?????????????????????????????????????????????????? | | ?????????????????????????????????????????????????? | | ?????????????????????????????????????????????????? | | ?????????????????????????????????????????????????? | | ?????????????????????????????????????????????????? | | ?????????????????????????????????????????????????? | | ?????????????????????????????????????????????????? | | ???????????????????????????????#????? ???????????? | | ?????????????????????????????????????????????????? | | ????????????????????????????????? ???????????????? | | ?????????????????????????#???????????????????????? | | ?????????????????????????????#???????????????????? | | ?????????????????+??????#????#?? ???????? ???????? | | ????????????????????????#?#??????????????????????? | | ??????????????????? ?#??????##?? ?????????? ?????? | | ??????????????#???? ??########## ?"""" +?????????? | | ??????????????????"?#? # ?? ??????? ??#??? | | ???????????????? ????? #????"??# ? ?? ??? | | ???????????????? ?? ?? ? ?"????? ?? ?????? | | ?????????????##?"???#?? #???????? ? #???? | | ??????????????#??? ??#?? ???? ???? ?? #???? | | ?????????????#?"?? !#? ? ??????#??#?R #???? | | ????????????????"" ? ? ????#?#####? #???? | | ??????????????# ? ? ??#??# # #???? | | ????????#?#?### ###########+############ #???? | | ????????? !!]!@ !! % # ?? | | ?????????? % =%= !%!! % p ##### | | ?????????? | !%=%%%% ## | | ?????????? [ [= ## | | ??????????? %%][% R ## | | ????????????###############+######+############ | | ???????????? # %!%* # #??#?#### | | ????????????"??##???# # [ [ + """ ######### | | ???????? ?"""??##???# # # """ + = | | ??????????? G??#????### # """ ######### | | ????????? """ #?#???### # #??##???# | | ??????????? "?#?##??### "" # """ #?##????? | | ????????? ??? ?#????#?# S" # """ ##??????? | | ???????????????#????### # """ #??#???## | | ????????? ????#???????########### = ##??????? | | ??????????? ? ?????#??????#??##?##########??#??#?? | | ???????????? ??????#??????#?#?####??#?????#?#???## | | ??????????? ????????#???????????#?????#???#??????? | | ????????????????????????????????#??#???#?????????# | | ???????????????????????##??????#??????#???#??????? | | ??????????????????###???????#??#???#????#????????# | | ??????????????#??#??#?????#???###???#???#?#??????? | | ????????????????#??????????????????#?#???????????? | | ???????????????#??#????????##????????#???????#???? | | | +----------------------------------------------------+ Best States ------------- Heat Dissipation 37 Energy Generation 32 Energy Capacity 480 Matter Stores 300 Matter Capacity 300 Sight Range 16 Robot Scan Range 15 Terrain Scan Range 20 Terrain Scan Density 10 Armor Coverage 600 Resistance: KI 35 Resistance: TH 35 Resistance: EX 35 Resistance: EM 35 Resistance: I 35 Resistance: S 35 Resistance: P 35 Core Shielding 20 Evasion (%) 50 Recoil Reduction 5 Offensive Hacking 43 Defensive Hacking 20 Item Schematics ----------------- Phase Cannon | -8/Recycling | Hacked Gravmag Array | -8/Recycling | Hacked Katana | -8/Recycling | Hacked Fusion Compressor | -8/Recycling | Hacked Adv. Drone Bay | -6/Factory | Hacked Arm. Leg | -6/Factory | Hacked Weapon Mount | -6/Factory | Hacked Huge Storage Unit | -6/Factory | Scanalyzed Imp. Hacking Suite | -6/Factory | Scanalyzed Machine Analyzer | -6/Factory | Scanalyzed Robot Schematics ------------------ E-15 Imp | -6/Factory | Hacked Fabricated ------------ E-15 Imp | x2 | -6/Factory Repaired ---------- Assault Cannon | 25% | -6/Factory Med. Treads | 23% | -6/Factory Studied --------- None Alien Tech Used ----------------- None Achievements -------------- None Challenges ------------ None Game ------ Seed AuthchipHardenedBox Manual? 0 Play Time 01:06:39 Cumulative 211.0 hours Start 2025.12.19 @ 09:45:06 End 2025.12.19 @ 10:51:37 Sessions 1 Manual Loads 0 Difficulty Explorer Special Mode None Game No. 319 Rogue 0 Adventurer 0 Explorer 319 Win Type - Total 0 Types 0/0/0/0/0/0/0/0/0/0 Lore% 71 Gallery% 68 Achievement% 53 Wizard Run 0 Options --------- Layout 1 ASCII 0 Keyboard 0 Movement Mouse Keybinds 0 Fullscreen 1 Font 24/Smallcaps Map View 50x35 Zoom Use 0% Tactical HUD 1 Map Filters NONE Filters NONE Steam 1 RUN: ee91bcb7-cb10-436a-b010-3abaa60c7d29